bitfinex/quotes_BTCUSD_20241011
["timestamp","ask_amount","ask_price","bid_price","bid_amount"]
[1728690302251,0.78224901,62546.0,62545.0,0.00082]
[1728690302464,0.94347302,62546.0,62545.0,0.00082]
[1728690303331,1.28963202,62546.0,62545.0,0.00082]
[1728690303563,1.37771043,62546.0,62545.0,0.00082]
[1728690303981,1.39171043,62546.0,62545.0,0.00082]
[1728690304189,1.3015835,62546.0,62545.0,0.00082]
[1728690304615,2.37051723,62546.0,62545.0,0.00082]
[1728690304837,2.53188694,62546.0,62545.0,0.00082]
[1728690305048,2.76355886,62546.0,62545.0,0.00082]
[1728690305257,2.38812231,62546.0,62545.0,0.00082]
[1728690305470,1.69139388,62546.0,62545.0,0.00082]
[1728690305678,1.89254932,62546.0,62545.0,0.00082]
[1728690306137,1.98444932,62546.0,62545.0,0.00082]
[1728690306371,2.30959932,62546.0,62545.0,0.00082]
[1728690306580,2.15212895,62546.0,62545.0,0.00082]
[1728690306807,2.31349866,62546.0,62545.0,0.00082]
[1728690307301,2.16973403,62546.0,62545.0,0.00082]
[1728690309426,2.00836432,62546.0,62545.0,0.00082]
[1728690310968,1.80720888,62546.0,62545.0,0.00082]
[1728690311215,1.80720888,62546.0,62538.0,0.00073604]
[1728690311216,0.233704,62542.0,62538.0,0.00073604]
[1728690311431,1.29000255,62546.0,62538.0,0.00073604]
[1728690311432,0.1599,62539.0,62538.0,0.00073604]
[1728690311645,0.32112401,62539.0,62538.0,0.00073604]
[1728690312064,0.16122401,62539.0,62538.0,0.00073604]
[1728690312616,0.16822401,62539.0,62538.0,0.00073604]
[1728690312983,0.16122401,62539.0,62538.0,0.00073604]
[1728690313135,0.16222401,62539.0,62538.0,0.00173604]
[1728690313342,0.16722401,62539.0,62538.0,0.00173604]
[1728690313978,0.32712401,62539.0,62538.0,0.00173604]
[1728690314322,0.32712401,62539.0,62538.0,0.18333604]
[1728690315405,0.006,62539.0,62538.0,0.18333604]
[1728690316421,1.22083373,62539.0,62538.0,0.18415604]
[1728690316659,1.06093373,62539.0,62538.0,0.18415604]
[1728690317072,1.22083373,62539.0,62538.0,0.18415604]
[1728690334270,0.1659,62539.0,62538.0,0.18415604]
[1728690339350,0.1659,62539.0,62538.0,0.20257164]
[1728690341508,0.1659,62539.0,62538.0,0.00255604]
[1728690347911,0.42770173,62539.0,62538.0,0.00255604]
[1728690348123,0.47565442,62539.0,62538.0,0.00182]
[1728690348330,0.90379871,62539.0,62538.0,0.00182]
[1728690348538,1.8618507,62539.0,62538.0,0.00182]
[1728690348746,2.10202041,62539.0,62538.0,0.00182]
[1728690348953,2.10102041,62539.0,62538.0,0.00082]
[1728690349167,2.19659813,62539.0,62538.0,0.00082]
[1728690349376,2.43472779,62539.0,62538.0,0.00082]
[1728690349580,2.39339204,62539.0,62538.0,0.00082]
[1728690349789,2.54723239,62539.0,62538.0,0.00082]
[1728690349998,1.98829354,62539.0,62538.0,0.00082]
[1728690350211,2.40528592,62539.0,62538.0,0.00082]
[1728690350416,2.56665563,62539.0,62538.0,0.00082]
[1728690350621,2.55865563,62539.0,62538.0,0.00082]
[1728690350833,2.58665563,62539.0,62538.0,0.00082]
[1728690352347,2.74853348,62539.0,62538.0,0.00082]
[1728690352546,2.72053348,62539.0,62538.0,0.00082]
[1728690352751,2.70653348,62539.0,62538.0,0.00082]
[1728690352954,2.73453348,62539.0,62538.0,0.00082]
[1728690353230,2.57265563,62539.0,62538.0,0.00082]
[1728690353826,2.58665563,62539.0,62538.0,0.00082]
[1728690354694,2.5870801,62539.0,62538.0,0.00082]
[1728690355586,2.22255495,62539.0,62538.0,0.00082]
[1728690355795,2.56693767,62539.0,62538.0,0.00082]
[1728690356417,2.71059772,62539.0,62538.0,0.00082]
[1728690356641,2.66859772,62539.0,62538.0,0.00082]
[1728690356859,2.68259772,62539.0,62538.0,0.00082]
[1728690357067,2.34700972,62539.0,62538.0,0.00082]
[1728690357275,2.43793789,62539.0,62538.0,0.00082]
[1728690357477,2.20226189,62539.0,62538.0,0.00082]
[1728690357627,2.23026189,62539.0,62538.0,0.00082]
[1728690357846,2.46593789,62539.0,62538.0,0.00082]
[1728690359238,2.32229084,62539.0,62538.0,0.00082]
[1728690359696,2.34733081,62539.0,62538.0,0.00082]
[1728690360816,2.10845281,62539.0,62538.0,0.00082]
[1728690362910,2.10845281,62539.0,62525.0,0.00082]
[1728690362911,0.45619696,62526.0,62525.0,0.00082]
[1728690363132,0.45619696,62526.0,62525.0,1e-06]
[1728690363133,2.75470214,62526.0,62525.0,1e-06]
[1728690363363,2.83353564,62526.0,62525.0,1e-06]
[1728690363602,2.83353564,62526.0,62515.0,0.23664158]
[1728690363603,0.159959,62516.0,62515.0,0.23664158]
[1728690363824,0.64044414,62516.0,62515.0,0.23664158]
[1728690364040,0.64044414,62516.0,62508.0,0.00082]
[1728690364041,0.159976,62509.0,62508.0,0.00082]
[1728690364269,1.48648744,62509.0,62508.0,0.00082]
[1728690366283,1.39490972,62509.0,62508.0,0.00082]
[1728690366495,1.55856612,62509.0,62508.0,0.00082]
[1728690368065,1.65856612,62509.0,62508.0,0.00082]
[1728690369848,0.60363239,62509.0,62508.0,0.00082]
[1728690375634,1.65856612,62509.0,62508.0,0.00082]
[1728690377281,1.86086612,62509.0,62508.0,0.00082]
[1728690377687,1.71120972,62509.0,62508.0,0.00082]
[1728690379368,2.21120972,62509.0,62508.0,0.00082]
[1728690379583,2.37684339,62509.0,62508.0,0.00082]
[1728690381658,2.54597139,62509.0,62508.0,0.00082]
[1728690381822,2.38460168,62509.0,62508.0,0.00082]
[1728690384156,2.38460168,62509.0,62502.0,0.0171491]
[1728690384157,0.16425596,62503.0,62502.0,0.0171491]
[1728690384365,0.88236096,62501.0,62500.0,1e-06]
[1728690384593,5.33004668,62501.0,62500.0,1e-06]
[1728690384790,5.42102968,62501.0,62500.0,1e-06]
[1728690385222,5.71123245,62501.0,62500.0,1e-06]
[1728690386309,5.72523245,62501.0,62500.0,1e-06]
[1728690386536,5.56157605,62501.0,62500.0,1e-06]
[1728690386967,5.57557605,62501.0,62500.0,1e-06]
[1728690387175,5.58957605,62501.0,62500.0,1e-06]
[1728690387615,6.64450978,62501.0,62500.0,1e-06]
[1728690388529,4.05028807,62501.0,62500.0,1e-06]
[1728690388738,3.92353447,62501.0,62500.0,1e-06]
[1728690390475,3.77387807,62501.0,62500.0,1e-06]
[1728690390701,3.92353447,62501.0,62500.0,1e-06]
[1728690391951,4.07319087,62501.0,62500.0,1e-06]
[1728690392172,4.23456058,62501.0,62500.0,1e-06]
[1728690393415,0.00626396,62496.0,62495.0,0.00082]
[1728690393640,4.2458774,62496.0,62495.0,1e-06]
[1728690393850,5.2247084,62496.0,62495.0,1e-06]
[1728690394058,4.9041174,62496.0,62495.0,1e-06]
[1728690394273,5.06548711,62496.0,62495.0,1e-06]
[1728690394538,4.90656311,62496.0,62495.0,1e-06]
[1728690394762,4.92056311,62496.0,62495.0,1e-06]
[1728690395202,4.7591934,62496.0,62495.0,1e-06]
[1728690395626,4.6523444,62496.0,62495.0,1e-06]
[1728690395864,4.6338544,62496.0,62495.0,1e-06]
[1728690396098,4.3802804,62496.0,62495.0,1e-06]
[1728690397352,4.9289264,62496.0,62495.0,1e-06]
[1728690397551,5.09029611,62496.0,62495.0,1e-06]
[1728690398004,4.97148711,62496.0,62495.0,1e-06]
[1728690398213,2.5525266,62496.0,62495.0,1e-06]
[1728690398453,2.702183,62496.0,62495.0,1e-06]
[1728690399191,2.8518394,62496.0,62495.0,1e-06]
[1728690399676,2.8538394,62496.0,62495.0,1e-06]
[1728690401403,2.96659924,62496.0,62495.0,1e-06]
[1728690401645,3.01520911,62496.0,62495.0,1e-06]
[1728690403013,2.86555271,62496.0,62495.0,1e-06]
[1728690403260,2.86355271,62496.0,62495.0,1e-06]
[1728690403545,2.86555271,62496.0,62495.0,1e-06]
[1728690403799,3.01520911,62496.0,62495.0,1e-06]
[1728690404022,2.86555271,62496.0,62495.0,1e-06]
[1728690404246,2.91327783,62496.0,62495.0,1e-06]
[1728690404494,3.06293423,62496.0,62495.0,1e-06]
[1728690405209,3.08679679,62496.0,62495.0,1e-06]
[1728690405857,2.93714039,62496.0,62495.0,1e-06]
[1728690406065,2.86555271,62496.0,62495.0,1e-06]
[1728690406313,3.01520911,62496.0,62495.0,1e-06]
[1728690406779,2.86555271,62496.0,62495.0,1e-06]
[1728690407023,3.01520911,62496.0,62495.0,1e-06]
[1728690407257,2.86555271,62496.0,62495.0,1e-06]
[1728690407736,2.702183,62496.0,62495.0,1e-06]
[1728690408168,2.79776107,62496.0,62495.0,1e-06]
[1728690408396,2.82149581,62496.0,62495.0,1e-06]
[1728690408867,2.82171165,62496.0,62495.0,1e-06]
[1728690409112,1.89086965,62496.0,62495.0,1e-06]
[1728690409366,3.42365165,62496.0,62495.0,1e-06]
[1728690409627,3.26444908,62496.0,62495.0,1e-06]
[1728690409890,3.2644295,62496.0,62495.0,1e-06]
[1728690410573,3.14491471,62496.0,62495.0,1e-06]
[1728690411937,2.985545,62496.0,62495.0,1e-06]
[1728690412421,3.02213334,62496.0,62495.0,1e-06]
[1728690415389,3.02013334,62496.0,62495.0,1e-06]
[1728690416076,3.02213334,62496.0,62495.0,1e-06]
[1728690416294,3.02013334,62496.0,62495.0,1e-06]
[1728690416507,3.17013387,62496.0,62495.0,1e-06]
[1728690417430,3.31355162,62496.0,62495.0,1e-06]
[1728690417628,3.31155162,62496.0,62495.0,1e-06]
[1728690418281,3.39270191,62496.0,62495.0,1e-06]
[1728690419166,3.39267689,62496.0,62495.0,1e-06]
[1728690419803,3.41773352,62496.0,62495.0,1e-06]
[1728690420022,3.26964199,62496.0,62495.0,1e-06]
[1728690420260,2.98516999,62496.0,62495.0,1e-06]
[1728690420950,2.98716999,62496.0,62495.0,1e-06]
[1728690421611,2.98516999,62496.0,62495.0,1e-06]
[1728690422053,2.98681199,62496.0,62495.0,1e-06]
[1728690422478,2.98699311,62496.0,62495.0,1e-06]
[1728690423342,3.14864084,62496.0,62495.0,1e-06]
[1728690424208,2.98899311,62496.0,62495.0,1e-06]
[1728690425080,3.15036282,62496.0,62495.0,1e-06]
[1728690425986,2.96411808,62496.0,62495.0,1e-06]
[1728690426197,3.15036282,62496.0,62495.0,1e-06]
[1728690426673,3.24796282,62496.0,62495.0,1e-06]
[1728690426906,3.08459311,62496.0,62495.0,1e-06]
[1728690427115,3.14869611,62496.0,62495.0,1e-06]
[1728690427326,3.15069611,62496.0,62495.0,1e-06]
[1728690430284,3.47247934,62496.0,62495.0,1e-06]
[1728690430751,3.51754531,62496.0,62495.0,1e-06]
[1728690432412,2.19559561,62496.0,62495.0,1e-06]
[1728690432633,0.60971068,62496.0,62495.0,1e-06]
[1728690432834,0.63947862,62496.0,62495.0,1e-06]
[1728690433060,0.80157443,62496.0,62495.0,1e-06]
[1728690433300,0.63947862,62496.0,62495.0,1e-06]
[1728690433471,0.61220472,62496.0,62495.0,1e-06]
[1728690433685,0.45010891,62496.0,62495.0,1e-06]
[1728690433900,0.76317944,62496.0,62495.0,1e-06]
[1728690434110,0.60110891,62496.0,62495.0,1e-06]
[1728690434558,0.76317944,62496.0,62495.0,1e-06]
[1728690434974,0.60110891,62496.0,62495.0,1e-06]
[1728690435178,0.76317944,62496.0,62495.0,1e-06]
[1728690435386,0.75412554,62496.0,62495.0,1e-06]
[1728690437872,1.80905827,62496.0,62495.0,1e-06]
[1728690438088,2.03378241,62496.0,62495.0,1e-06]
[1728690439109,1.87171188,62496.0,62495.0,1e-06]
[1728690439548,2.03378241,62496.0,62495.0,1e-06]
[1728690439753,2.57577768,62496.0,62495.0,1e-06]
[1728690439972,2.57577768,62496.0,62481.0,0.0005]
[1728690439973,0.28277979,62483.0,62481.0,0.0005]
[1728690440176,1.5920589,62483.0,62481.0,0.0005]
[1728690441203,1.5950589,62483.0,62481.0,0.0005]
[1728690442303,1.6080589,62483.0,62481.0,0.0005]
[1728690454356,1.51493653,62483.0,62481.0,0.0005]
[1728690455131,1.50864547,62483.0,62481.0,0.0005]
[1728690455386,1.50864547,62483.0,62482.0,0.09322]
[1728690459229,1.62863507,62483.0,62482.0,0.09322]
[1728690459686,1.60463726,62483.0,62482.0,0.187552]
[1728690459909,1.5806402,62483.0,62482.0,0.187552]
[1728690460129,1.49193653,62483.0,62482.0,0.187552]
[1728690461323,1.49193653,62483.0,62482.0,0.17032]
[1728690462450,1.5399263,62483.0,62482.0,0.17105604]
[1728690464089,1.4399263,62483.0,62482.0,0.17105604]
[1728690464569,1.39193653,62483.0,62482.0,0.17105604]
[1728690465060,1.46391447,62483.0,62482.0,0.17105604]
[1728690465286,1.39193653,62483.0,62482.0,0.17105604]
[1728690465538,1.43992026,62483.0,62482.0,0.00082]
[1728690465824,1.61192626,62483.0,62482.0,0.00082]
[1728690467232,1.61356626,62483.0,62482.0,0.00082]
[1728690468903,1.58953694,62483.0,62482.0,0.00082]
[1728690469141,1.58953409,62483.0,62482.0,0.00082]
[1728690469651,1.70893409,62483.0,62482.0,0.00082]
[1728690469906,1.68877653,62483.0,62482.0,0.00082]
[1728690470168,1.68877653,62483.0,62477.0,0.0001]
[1728690470169,0.160056,62478.0,62477.0,0.0001]
[1728690470402,1.74039738,62478.0,62477.0,0.0001]
[1728690470886,1.88430485,62478.0,62477.0,0.0001]
[1728690471132,1.74039738,62478.0,62477.0,0.0001]
[1728690471401,1.83351975,62478.0,62477.0,0.0001]
[1728690471877,1.93431975,62478.0,62477.0,0.0001]
[1728690473590,2.98925248,62478.0,62477.0,0.0001]
[1728690473828,2.86886748,62478.0,62477.0,0.0001]
[1728690474091,2.85037648,62478.0,62477.0,0.0001]
[1728690475297,1.78625748,62478.0,62477.0,0.0001]
[1728690475531,2.66424811,62478.0,62477.0,0.0001]
[1728690475990,2.09421011,62478.0,62477.0,0.0001]
[1728690476246,1.69313511,62478.0,62477.0,0.0001]
[1728690476490,1.92724548,62478.0,62477.0,0.0001]
[1728690476698,1.80741411,62478.0,62477.0,0.0001]
[1728690476909,1.92724594,62478.0,62477.0,0.0001]
[1728690478967,1.75832357,62478.0,62477.0,0.0001]
[1728690479205,1.85144594,62478.0,62477.0,0.0001]
[1728690479424,1.94456831,62478.0,62477.0,0.0001]
[1728690479677,1.85144594,62478.0,62477.0,0.0001]
[1728690480198,1.87650844,62478.0,62477.0,0.00092]
[1728690480630,1.99683334,62478.0,62477.0,0.00092]
[1728690481056,1.93321611,62478.0,62477.0,0.00092]
[1728690483517,1.81338428,62478.0,62477.0,0.00092]
[1728690486244,1.82044755,62478.0,62477.0,0.00092]
[1728690487379,1.94029504,62478.0,62477.0,0.00092]
[1728690487566,1.82044755,62478.0,62477.0,0.00092]
[1728690487833,1.70616855,62478.0,62477.0,0.00092]
[1728690488282,1.85924155,62478.0,62477.0,0.00092]
[1728690490029,1.70616855,62478.0,62477.0,0.00092]
[1728690490459,1.85916555,62478.0,62477.0,0.00092]
[1728690492624,1.55633851,62478.0,62477.0,0.00092]
[1728690492848,1.62824011,62478.0,62477.0,0.00092]
[1728690493063,1.70616855,62478.0,62477.0,0.00092]
[1728690493299,1.80203807,62478.0,62477.0,0.00092]
[1728690494189,2.15428955,62478.0,62477.0,0.00092]
[1728690495321,2.15428955,62478.0,62470.0,0.2]
[1728690495322,0.283061,62476.0,62470.0,0.2]
[1728690495593,0.260074,62471.0,62470.0,0.17494]
[1728690495810,3.40141305,62471.0,62470.0,0.17494]
[1728690496030,3.09611582,62471.0,62470.0,0.17494]
[1728690496593,3.25748553,62471.0,62470.0,0.17494]
[1728690496793,3.09611582,62471.0,62470.0,0.17494]
[1728690497008,3.11011582,62471.0,62470.0,0.17494]
[1728690497208,3.10811582,62471.0,62470.0,0.17494]
[1728690497431,3.01335882,62471.0,62470.0,0.17494]
[1728690498237,2.65102582,62471.0,62470.0,0.16898]
[1728690498461,2.42954782,62471.0,62470.0,0.16898]
[1728690498668,2.41440382,62471.0,62470.0,0.16898]
[1728690498887,2.43040382,62471.0,62470.0,0.16898]
[1728690499501,2.42840382,62471.0,62470.0,0.16898]
[1728690499933,2.43040382,62471.0,62470.0,0.16898]
[1728690500145,3.48533655,62471.0,62470.0,0.16898]
[1728690500746,3.48533655,62471.0,62470.0,0.17498]
[1728690501156,3.47133655,62471.0,62470.0,0.17498]
[1728690501354,3.48533655,62471.0,62470.0,0.17498]
[1728690501587,3.47133655,62471.0,62470.0,0.17498]
[1728690501791,2.27159855,62471.0,62470.0,0.17498]
[1728690502000,2.10381355,62471.0,62470.0,0.17498]
[1728690502633,2.2741998,62471.0,62470.0,0.17498]
[1728690502986,2.2881998,62471.0,62470.0,0.17498]
[1728690503448,2.22339444,62471.0,62470.0,0.1758]
[1728690503657,2.22503444,62471.0,62470.0,0.1758]
[1728690504070,2.21103444,62471.0,62470.0,0.1758]
[1728690504494,2.22503444,62471.0,62470.0,0.1758]
[1728690504908,2.22500293,62471.0,62470.0,0.1758]
[1728690505111,2.32310282,62471.0,62470.0,0.1758]
[1728690505536,2.20355344,62471.0,62470.0,0.1758]
[1728690506164,2.16254278,62471.0,62470.0,0.1758]
[1728690507406,2.16454278,62471.0,62470.0,0.1758]
[1728690507610,2.16254278,62471.0,62470.0,0.1758]
[1728690507822,0.40992704,62462.0,62461.0,0.0005]
[1728690508009,1.64908378,62462.0,62461.0,0.0005]
[1728690508234,1.69690343,62462.0,62461.0,0.0005]
[1728690509282,1.69690343,62462.0,62441.0,0.0005]
[1728690509283,0.623,62456.0,62441.0,0.0005]
[1728690509492,1.29181152,62456.0,62442.0,0.23664158]
[1728690509695,1.29181152,62456.0,62448.0,0.0789]
[1728690509696,1.09416605,62456.0,62448.0,0.0789]
[1728690509902,1.14198148,62456.0,62448.0,0.0789]
[1728690510493,1.09416605,62456.0,62448.0,0.0789]
[1728690510977,1.24399609,62456.0,62441.0,0.0005]
[1728690511209,1.15598148,62456.0,62442.0,0.0789]
[1728690511428,1.15598148,62456.0,62443.0,0.00320251]
[1728690511649,1.15598148,62456.0,62442.0,0.0789]
[1728690511879,1.16998148,62456.0,62442.0,0.0789]
[1728690512533,1.16995805,62456.0,62442.0,0.0789]
[1728690513838,1.16995805,62456.0,62443.0,0.00320253]
[1728690514048,1.1699525,62456.0,62443.0,0.00320253]
[1728690514262,1.12216605,62456.0,62443.0,0.00320253]
[1728690514688,1.12216605,62456.0,62442.0,0.0789]
[1728690515111,2.32692882,62456.0,62446.0,0.099]
[1728690515320,2.17709878,62456.0,62446.0,0.099]
[1728690515763,2.17709878,62456.0,62455.0,0.14001295]
[1728690517695,2.22488523,62456.0,62455.0,0.14001295]
[1728690518564,2.12048391,62456.0,62455.0,0.14001295]
[1728690518989,2.16824628,62456.0,62455.0,0.14001295]
[1728690519196,2.21369908,62456.0,62455.0,0.14001295]
[1728690519419,2.31593328,62456.0,62455.0,0.14001295]
[1728690519640,2.26145721,62456.0,62455.0,0.14001295]
[1728690520494,2.02726874,62456.0,62455.0,0.14001295]
[1728690520709,2.12048391,62456.0,62455.0,0.14001295]
[1728690521365,1.62048391,62456.0,62455.0,0.14001295]
[1728690522251,1.71369908,62456.0,62455.0,0.14001295]
[1728690522460,1.59248391,62456.0,62455.0,0.14001295]
[1728690522666,1.60648391,62456.0,62455.0,0.14001295]
[1728690523083,1.81003791,62456.0,62455.0,0.14001295]
[1728690523905,2.39562191,62456.0,62455.0,0.14001295]
[1728690524118,1.60648391,62456.0,62455.0,0.14001295]
[1728690524521,1.62048391,62456.0,62455.0,0.14001295]
[1728690525423,1.99692008,62456.0,62455.0,0.14001295]
[1728690525628,1.90370491,62456.0,62455.0,0.14001295]
[1728690526091,1.99692008,62456.0,62455.0,0.14001295]
[1728690526305,2.04467821,62456.0,62455.0,0.14001295]
[1728690526520,0.160138,62446.0,62445.0,0.00082]
[1728690526732,1.49929474,62446.0,62445.0,0.00082]
[1728690527841,1.84140474,62446.0,62445.0,0.00082]
[1728690528273,1.82040474,62446.0,62445.0,0.00082]
[1728690528491,1.98043241,62446.0,62445.0,0.00082]
[1728690528708,1.99443241,62446.0,62445.0,0.00082]
[1728690528926,2.02816307,62446.0,62445.0,0.00082]
[1728690529159,1.98043241,62446.0,62445.0,0.00082]
[1728690529412,2.04216307,62446.0,62445.0,0.00082]
[1728690529624,2.02815599,62446.0,62445.0,0.00082]
[1728690529855,1.98043241,62446.0,62445.0,0.00082]
[1728690530067,1.97043241,62446.0,62445.0,0.00082]
[1728690530276,1.98443241,62446.0,62445.0,0.00082]
[1728690530694,1.97043241,62446.0,62445.0,0.00082]
[1728690530907,1.98443241,62446.0,62445.0,0.00082]
[1728690531117,1.99843241,62446.0,62445.0,0.00082]
[1728690531561,2.04615599,62446.0,62445.0,0.00082]
[1728690531732,2.06338073,62446.0,62445.0,0.00082]
[1728690532002,2.01565715,62446.0,62445.0,0.00082]
[1728690532442,2.06338073,62446.0,62445.0,0.00082]
[1728690532634,2.0633681,62446.0,62445.0,0.00082]
[1728690532890,2.04614336,62446.0,62445.0,0.00082]
[1728690533079,1.99843241,62446.0,62445.0,0.00082]
[1728690535363,2.04614336,62446.0,62445.0,0.00082]
[1728690535592,1.99843241,62446.0,62445.0,0.00082]
[1728690536021,2.04614336,62446.0,62445.0,0.00082]
[1728690536165,1.99843241,62446.0,62445.0,0.00082]
[1728690536390,2.06999884,62446.0,62445.0,0.00082]
[1728690536786,2.04614763,62446.0,62445.0,0.00082]
[1728690536991,1.99843241,62446.0,62445.0,0.00082]
[1728690537446,2.06999884,62446.0,62445.0,0.00082]
[1728690537667,2.01476141,62446.0,62445.0,0.00082]
[1728690538207,2.08632784,62446.0,62445.0,0.00082]
[1728690539214,2.08634886,62446.0,62445.0,0.00082]
[1728690539414,2.17613112,62446.0,62445.0,0.00082]
[1728690539710,2.01476141,62446.0,62445.0,0.00082]
[1728690540491,2.03983843,62446.0,62445.0,0.00082]
[1728690540698,2.13535364,62446.0,62445.0,0.00082]
[1728690540905,2.03983843,62446.0,62445.0,0.00082]
[1728690541115,2.15924348,62446.0,62445.0,0.00082]
[1728690541781,2.05654737,62446.0,62445.0,0.00082]
[1728690541992,2.17595023,62446.0,62445.0,0.00082]
[1728690542200,2.05654737,62446.0,62445.0,0.00082]
[1728690542860,2.17594683,62446.0,62445.0,0.00082]
[1728690543079,2.05654737,62446.0,62445.0,0.00082]
[1728690547171,1.81713737,62446.0,62445.0,0.00082]
[1728690547385,3.17531737,62446.0,62445.0,0.00082]
[1728690548074,3.08698937,62446.0,62445.0,0.00082]
[1728690548521,3.07530692,62446.0,62445.0,0.00082]
[1728690548743,2.77210592,62446.0,62445.0,0.00082]
[1728690548973,2.67257292,62446.0,62445.0,0.00082]
[1728690549211,2.79198859,62446.0,62445.0,0.00082]
[1728690549430,2.76810745,62446.0,62445.0,0.00082]
[1728690549639,2.67257292,62446.0,62445.0,0.00082]
[1728690550043,2.65503492,62446.0,62445.0,0.00082]
[1728690550918,2.77448341,62446.0,62445.0,0.00082]
[1728690551125,2.65503492,62446.0,62445.0,0.00082]
[1728690551339,2.77448335,62446.0,62445.0,0.00082]
[1728690551549,2.65503492,62446.0,62445.0,0.00082]
[1728690553910,2.88754727,62446.0,62445.0,0.00082]
[1728690554156,2.88754727,62446.0,62432.0,0.00562101]
[1728690554157,0.260148,62442.0,62432.0,0.00562101]
[1728690554364,1.3979392,62442.0,62432.0,0.00562101]
[1728690554572,1.0719032,62442.0,62432.0,0.00562101]
[1728690554782,1.07191597,62442.0,62432.0,0.00562101]
[1728690554994,1.07191597,62442.0,62432.0,0.09582101]
[1728690556096,1.08591597,62442.0,62432.0,0.09582101]
[1728690556538,2.17875588,62442.0,62432.0,0.09582101]
[1728690556800,2.17876154,62442.0,62432.0,0.09582101]
[1728690557044,2.05921996,62442.0,62432.0,0.09582101]
[1728690557869,2.44193796,62442.0,62432.0,0.09582101]
[1728690559024,2.43007796,62442.0,62432.0,0.09582101]
[1728690559540,2.49422896,62442.0,62432.0,0.09582101]
[1728690559785,2.21856096,62442.0,62432.0,0.09582101]
[1728690561470,2.22578139,62442.0,62432.0,0.09582101]
[1728690562198,2.03922917,62442.0,62432.0,0.09582101]
[1728690562399,1.62780128,62442.0,62435.0,0.0775]
[1728690562991,1.69954774,62442.0,62435.0,0.0775]
[1728690563203,1.68554774,62442.0,62435.0,0.0775]
[1728690563406,1.78437133,62442.0,62435.0,0.0775]
[1728690563617,1.77037133,62442.0,62435.0,0.0775]
[1728690563827,1.68554774,62442.0,62435.0,0.0775]
[1728690564041,1.69954774,62442.0,62435.0,0.0775]
[1728690564233,1.68554774,62442.0,62441.0,0.00132]
[1728690564677,1.69954774,62442.0,62441.0,0.00132]
[1728690564897,1.70946322,62442.0,62441.0,0.00132]
[1728690565103,1.62780128,62442.0,62441.0,0.00132]
[1728690565532,1.72346322,62442.0,62441.0,0.00132]
[1728690567475,1.62780128,62442.0,62441.0,0.00132]
[1728690568268,1.72352594,62442.0,62441.0,0.00132]
[1728690568472,1.62780128,62442.0,62441.0,0.00132]
[1728690568659,1.74737871,62442.0,62441.0,0.00132]
[1728690569232,1.62780128,62442.0,62441.0,0.00132]
[1728690569360,1.74737871,62442.0,62441.0,0.00132]
[1728690570425,1.62780128,62442.0,62441.0,0.00132]
[1728690577458,1.43452517,62442.0,62441.0,0.17455604]
[1728690577696,1.43452517,62442.0,62441.0,0.19364455]
[1728690577914,1.48247369,62442.0,62441.0,0.19364455]
[1728690578130,1.43452517,62442.0,62441.0,0.19364455]
[1728690578258,1.42052517,62442.0,62441.0,0.17455604]
[1728690578474,1.40652517,62442.0,62441.0,0.17455604]
[1728690578688,1.44822428,62442.0,62441.0,0.17455604]
[1728690578897,1.38630474,62442.0,62441.0,0.17455604]
[1728690579123,1.45822476,62442.0,62441.0,0.17455604]
[1728690579354,1.38630474,62442.0,62441.0,0.17455604]
[1728690579689,1.40030474,62442.0,62441.0,0.17455604]
[1728690579899,1.38630474,62442.0,62441.0,0.17455604]
[1728690580097,1.45822745,62442.0,62441.0,0.17455604]
[1728690580305,1.47222745,62442.0,62441.0,0.17455604]
[1728690580726,1.40030474,62442.0,62441.0,0.17455604]
[1728690591983,1.49358085,62442.0,62441.0,0.17455604]
[1728690592191,0.43864812,62442.0,62441.0,0.17455604]
[1728690592615,0.43864812,62442.0,62441.0,0.19364455]
[1728690593055,0.43864812,62442.0,62441.0,0.17455604]
[1728690596020,0.48655129,62442.0,62441.0,0.17455604]
[1728690596243,0.43864812,62442.0,62441.0,0.17455604]
[1728690601064,0.34537201,62442.0,62441.0,0.17455604]
[1728690602763,0.184148,62442.0,62441.0,0.17455604]
[1728690602973,0.184148,62442.0,62441.0,0.35699833]
[1728690602974,0.024,62442.0,62441.0,0.35699833]
[1728690603172,0.024,62442.0,62441.0,0.19364455]
[1728690603821,0.014,62442.0,62441.0,0.19364455]
[1728690604041,0.00164,62445.0,62444.0,0.33497904]
[1728690604264,0.00164,62445.0,62444.0,0.36786073]
[1728690605194,0.00164,62445.0,62444.0,0.37286073]
[1728690605441,0.00164,62445.0,62444.0,0.46813684]
[1728690606432,0.00164,62455.0,62444.0,0.46813684]
[1728690606433,0.00164,62455.0,62454.0,0.26112915]
[1728690606679,0.00164,62455.0,62454.0,0.40423085]
[1728690606931,0.00164,62455.0,62454.0,0.42011766]
[1728690607429,0.00164,62456.0,62455.0,0.16785104]
[1728690607681,0.0496679,62467.0,62460.0,0.26111415]
[1728690607937,0.0496679,62467.0,62464.0,0.34202804]
[1728690608429,0.161715,62471.0,62466.0,0.00073604]
[1728690608430,0.00164,62471.0,62466.0,0.00073604]
[1728690608666,0.00164,62471.0,62467.0,0.19296369]
[1728690608914,0.00164,62471.0,62470.0,0.00073604]
[1728690609417,0.160073,62472.0,62470.0,0.00073604]
[1728690609655,0.160073,62472.0,62471.0,0.00073604]
[1728690610625,0.171073,62472.0,62471.0,0.00073604]
[1728690610862,0.162073,62472.0,62471.0,0.01982455]
[1728690611099,0.160073,62472.0,62471.0,0.01982455]
[1728690611346,0.171073,62472.0,62471.0,0.01982455]
[1728690611591,0.013,62472.0,62471.0,0.02302565]
[1728690611837,0.013,62472.0,62471.0,0.36109855]
[1728690612561,0.013,62472.0,62471.0,0.36309855]
[1728690613248,0.011,62472.0,62471.0,0.36309855]
[1728690613471,0.23664158,62479.0,62478.0,0.00073604]
[1728690613698,0.6511967,62479.0,62478.0,0.00073604]
[1728690613941,0.41455512,62479.0,62478.0,0.00073604]
[1728690614824,0.41455312,62479.0,62478.0,0.00073604]
[1728690616552,0.41455312,62479.0,62475.0,0.00073604]
[1728690616553,0.25450012,62479.0,62475.0,0.00073604]
[1728690616765,0.25333711,62476.0,62475.0,0.00073604]
[1728690616994,0.41456112,62476.0,62475.0,0.00073604]
[1728690618553,0.42856112,62476.0,62475.0,0.00073604]
[1728690619016,0.33528501,62476.0,62475.0,0.00073604]
[1728690623284,0.014,62476.0,62475.0,0.08353604]
[1728690623519,0.014,62476.0,62475.0,0.28789337]